Workbook

Sheet CF_E
B2: Consolidated statement of cash flows (IFRS)
B3: from 1 October 2017 to 30 September 2018
C4: 2017/18 1 Oct 17 to 30 Sep 18 | D4: 2016/17 1 Oct 16 to 30 Sep 17
C5: € k | D5: € k
B6: Cash flows from operating activities:
B7: Consolidated profit | C7: =126310-233+153 -> 126230 | D7: 135778
B8: Adjustments to reconcile consolidated profit to net cash provided by / (used in) operating activities
B9: Income taxes | C9: =53106-153 -> 52953 | D9: 52778
B10: Interest income / expenses | C10: 1680 | D10: 1759
B11: Results from other investments | C11: -34 | D11: -39
B12: Result from disposal of legal entity / hydrophilic IOL business Aaren Scientific Inc. | C12: -2527 | D12: -7478
B13: Depreciation and amortisation | C13: 31282 | D13: 24235
B14: Gains / losses on disposal of fixed assets | C14: 2454 | D14: 249
B15: Dividends received | C15: 34 | D15: 25
B16: Interest received | C16: =933+13 -> 946 | D16: 770
B17: Interest paid | C17: =-1952+13-1 -> -1940 | D17: -1559
B18: Refunded income taxes | C18: 2583 | D18: 8700
B19: Income taxes paid | C19: -50947 | D19: -63430
B20: Changes in working capital:
B21: Trade receivables | C21: =535+51-699 -> -113 | D21: -48981
B22: Inventories | C22: -11758 | D22: -33381
B23: Other assets | C23: =5816+699 -> 6515 | D23: -18874
B24: Trade payables | C24: =862-51+109+1 -> 921 | D24: 15271
B25: Provisions and financial liabilities | C25: =22419-0-26 -> 22393 | D25: -26704
B26: Other liabilities | C26: 6535 | D26: -1387
B27: Total adjustments | C27: =SUM(C9:C26) -> 60977 | D27: =SUM(D9:D26) -> -98046
B28: Net cash provided by / (used in) operating activities | C28: =+C7+C27 -> 187207 | D28: =+D7+D27 -> 37732
B29: Cash flows from investing activities::
B30: Investment in property, plant and equipment | C30: =-16426-109 -> -16535 | D30: -13656
B31: Investment in other intangible assets | C31: -18221 | D31: -25366
B32: Proceeds from fixed assets | C32: 467 | D32: 489
B33: Proceeds from sale of investments | C33: 0 | D33: 16
B34: Payments for other loans | C34: 0 | D34: -4074
B35: Investment/ divestment in securities | C35: 3220 | D35: -4413
B36: Purchase of shares in affiliated non-consolidated companies | C36: 0 | D36: -12181
B37: Purchase of shares in affiliated consolidated companies, net of cash acquired | C37: -353 | D37: -6035
B38: Proceeds from disposal of legal entity / hydrophilic IOL business Aaren Scientific Inc. | C38: 2548 | D38: 9289 | F38: incl sale of subsidiary Hexavision
B39: Net cash provided by / (used in) investing activities | C39: =SUM(C30:C38) -> -28874 | D39: =SUM(D30:D38) -> -55931
B40: Cash flows from financing activities:
B41: Proceeds from / (repayment of) current liabilities to banks | C41: -102 | D41: 219
B42: Proceeds from / (repayment of) non-current liabilities to banks | C42: -482 | D42: -466
B43: (Increase) / decrease in treasury receivables | C43: -33663 | D43: -277249
B44: Increase / (decrease) in treasury payables | C44: -65315 | D44: 45234
B45: Increase / (decrease) in liabilities due to finance lease | C45: -2932 | D45: -2876
B46: Dividend payments to shareholders of Carl Zeiss Meditec AG | C46: -49192 | D46: -37565
B47: Dividend payments to non-controlling interests | C47: -5551 | D47: -26264
B48: Proceeds from capital increase (net) | C48: 0 | D48: =(8130.96*38.94)-(8130.96*38.94)*0.005 -> 315036.4845
B49: Payments of costs in connection with capital increase | C49: 0 | D49: -1575
B50: Net cash provided by / (used in) financing activities | C50: =SUM(C41:C49) -> -157237 | D50: =SUM(D41:D49) -> 14494.48449
B51: Effect of exchange rate fluctuation on cash and cash equivalents | C51: -345 | D51: -1080
B52: Effect of changes in scope of consolidation on cash and cash equivalents | C52: =1680+322 -> 2002 | D52: 0
B53: Net increase / (decrease) in cash and cash equivalents | C53: =+C28+C39+C50+C51+C52 -> 2753 | D53: =+D28+D39+D50+D51 -> -4784.515512
B54: Cash and cash equivalents, beginning of reporting period | C54: 3925 | D54: 8710
B55: Cash and cash equivalents, end of reporting period | C55: =+C53+C54 -> 6678 | D55: =+D53+D54 -> 3925.484488
B56: The following notes are an integral part of the audited consolidated financial statements.
